Cogmind - Beta 17.1 @@@ ROGUE MODE // 2026.09.02 @ 13:39:49 Player: Clog Result: Destroyed by BF-R6Q(R) with Subdweller Machine Gun Performance ------------- Evolutions (0) 0 Regions Visited (2) 400 Robots Destroyed (27) 135 Value Destroyed (627) 627 Prototype IDs (0) 0 Alien Tech Used (0) 0 Bonus (0) 0 TOTAL SCORE: 1162 Bonus ------- None Cogmind --------- Core Integrity 0/250 Matter 274/300 Energy 36/100 System Corruption 0% Temperature Cool (0) Movement Core (400) Ox7 Location -10/Subcaves Parts ------- > --- POWER (1) -------- (None) > --- PROPULSION (2) --- (None) > --- UTILITY (2) ------ Medium Storage Unit Seismic Detector > --- WEAPON (2) ------- Subdweller Beam Cannon Heavy Battle Rifle > --- INVENTORY (10) --- Light Ion Engine Light Treads Machine Analyzer Light Armor Plating Assault Rifle Subdweller Machine Gun Grenade Launcher Grenade Launcher Hammer Peak State ------------ > --- POWER ------------ Light Ion Engine > --- PROPULSION ------- Light Treads Light Treads > --- UTILITY ---------- Medium Storage Unit Seismic Detector > --- WEAPON ----------- Beam Cannon Heavy Battle Rifle > --- INVENTORY -------- Light Ion Engine Light Treads Machine Analyzer Light Armor Plating Subdweller Beam Cannon Assault Rifle Subdweller Machine Gun Grenade Launcher Grenade Launcher Hammer [Rating: 11] Favorites ----------- Power Light Ion Engine Engine Light Ion Engine Propulsion Light Treads Treads Light Treads Utility Seismic Detector Device Seismic Detector Storage Medium Storage Unit Weapon Beam Cannon Energy Gun Small Laser Energy Cannon Beam Cannon Ballistic Gun Assault Rifle Launcher Grenade Launcher Impact Weapon Hammer Build | -11 -10 -10 ------- Run | Yrd Mat Sub Slots Evolved . | . . . Power . | . . . Propulsion . | . . . Utility . | . . . Weapon . | . . . Parts Attached 14 | 7 4 3 Power 1 | 1 . . Engine 1 | 1 . . Core . | . . . Reactor . | . . . Propulsion 2 | 2 . . Treads 2 | 2 . . Leg . | . . . Wheel . | . . . Hover . | . . . Flight . | . . . Utility 3 | 2 1 . Device 1 | 1 . . Storage 2 | 1 1 . Processor . | . . . Hackware . | . . . Protection . | . . . Artifact . | . . . Weapon 8 | 2 3 3 Energy Gun 1 | 1 . . Energy Cannon 2 | . 1 1 Ballistic Gun 2 | 1 . 1 Ballistic Cannon . | . . . Launcher 2 | . 2 . Special Weapon . | . . . Impact Weapon 1 | . . 1 Slashing Weapon . | . . . Piercing Weapon . | . . . Special Melee Weapon . | . . . Unidentified Prototypes . | . . . Parts Lost 5 | . 1 4 Power 1 | . . 1 Propulsion 2 | . . 2 Utility . | . . . Weapon 2 | . 1 1 Highest Loss Streak 4 | . 1 4 To Critical Strikes . | . . . Average Backups 8 | 2 7 9 Power . | . 1 1 Propulsion 1 | . 2 1 Utility 1 | . . 1 Weapon 4 | . 2 5 Tool/Special . | . . . Unused Backups 8 | . 1 7 Power 1 | . . 1 Propulsion 3 | . . 3 Utility 2 | . . 2 Weapon 2 | . 1 1 Tool/Special . | . . . Average Slot Usage (%) 99 | . 99 99 Engine 13 | . 14 13 Treads 27 | . 28 27 Device 14 | . 14 14 Storage 14 | . 14 14 Energy Gun 2 | . 6 . Energy Cannon 11 | . 7 14 Ballistic Gun 14 | . 14 14 Peak Build Rating 11 | 7 7 11 Average Rating 8 | 4 6 8 On Entrance 4 | . 7 7 Avg Prop Armor Cover (%) . | . . . Naked Turns . | . . . Heaviest Build 21 | 12 19 21 Greatest Support 40 | 40 40 40 Greatest Overweight (x) . | . . . Average Overweight (x) . | . . . Largest Inventory Capacity 10 | 8 10 10 Average Capacity 9 | 6 9 10 Most Carried 10 | 5 9 10 Average Carried 8 | 2 7 9 Final Capacity 10 | 8 10 10 Final Carried 9 | 4 8 9 Class Distribution -------------------- 100% | Mutant Dominant Class ---------------- Mutant | -10/Materials Mutant | -10/Subcaves Resources | -11 -10 -10 ----------- Run | Yrd Mat Sub Matter Collected 513 | 276 129 108 Remotely . | . . . Salvage Created 775 | 122 285 368 Parts 59 | 7 18 34 Haulers Intercepted . | . . . Recyclers Shooed . | . . . Parts Field Recycled . | . . . Retrieved Matter . | . . . Parts Self-Destructed 17 | . . 17 Prevented . | . . . Parts Restored . | . . . Kills | -11 -10 -10 ------- Run | Yrd Mat Sub Combat Hostiles Destroyed 20 | . 10 10 Guns 10 | . 4 6 Cannons 4 | . . 4 AOE 6 | . 6 . Classes Destroyed 8 | 2 5 1 Worker 1 | . 1 . Builder 1 | . 1 . Tunneler 1 | 1 . . Recycler 1 | 1 . . Watcher 3 | . 3 . Swarmer 8 | . 6 2 Grunt 6 | . 4 2 Subdweller 6 | . . 6 Best Kill Streak 5 | 2 5 4 Combat Bots Only 5 | . 5 4 Max Kills in Single Turn 4 | 1 4 1 Gunslinging . | . . . Exploded 3 | . 3 . Melee . | . . . Uniques/NPCs Destroyed . | . . . Combat | -11 -10 -10 -------- Run | Yrd Mat Sub Hostile Shots Fired 98 | . 42 56 Missed 30 | . 13 17 Hits 68 | . 29 39 Projectile 68 | . 29 39 Damage Taken 1038 | . 340 698 Core 253 | . 60 193 Absorbed by Shields . | . . . Core Remaining (%) 100 | 100 . . Volleys Fired 62 | 2 26 34 Largest 2 | 2 2 2 Hottest 113 | 60 80 113 Shots Fired 118 | 4 49 65 Gun 74 | 4 39 31 Cannon 41 | . 7 34 Launcher 3 | . 3 . Special . | . . . Kinetic 56 | 2 23 31 Thermal 59 | 2 23 34 Explosive 3 | . 3 . Electromagnetic . | . . . Robot Hit Streak 9 | 3 6 9 Robot Miss Streak 5 | . 3 5 Penetration Max . | . . . Secondary Targets 1 | . 1 . Max Gunslinging Chain 1 | . 1 . Shots Hit Robots 63 | 3 22 38 Core Hits 39 | 2 21 16 Critical Kills 1 | . . 1 Critical Parts Destroyed . | . . . Critical Strikes 2 | . . 2 Destroy 2 | . . 2 Melee Attacks 1 | . . 1 Impact 1 | . . 1 Slashing . | . . . Piercing . | . . . Sneak Attacks . | . . . Combat Hostiles . | . . . Follow-up Attacks . | . . . Damage Inflicted 1361 | 37 604 720 Guns 582 | 37 219 326 Cannons 446 | . 52 394 Explosions 330 | . 330 . Melee . | . . . Ramming 3 | . 3 . Kinetic 453 | 15 112 326 Thermal 575 | 22 159 394 Explosive 330 | . 330 . Electromagnetic . | . . . Impact . | . . . Slashing . | . . . Piercing . | . . . Highest Corruption . | . . . Average Corruption . | . . . Corruption Purged . | . . . Corruption Blocked . | . . . Overload Shots . | . . . Overflow Damage . | . . . Projectiles . | . . . Explosions . | . . . Melee . | . . . Knockbacks . | . . . Impact . | . . . Kinetic . | . . . Secondary . | . . . Self-Inflicted Damage . | . . . Shots . | . . . Rammed . | . . . Targets Rammed 1 | . 1 . Kicked . | . . . Crushed 1 | . 1 . Highest Temperature 93 | . 93 . Average Temperature 37 | . 37 . Received Heat Transfer 246 | . 126 120 Siege Activations . | . . . Martial Activations . | . . . Shielding Activations . | . . . Robots Disrupted . | . . . Combat Hostiles . | . . . Robots Corrupted . | . . . Combat Hostiles . | . . . Parts Fried . | . . . Impact Corruptions . | . . . Robots Melted . | . . . Combat Hostiles . | . . . Parts Melted 2 | . 1 1 Heat Transferred 1188 | 50 361 777 Parts Sabotaged . | . . . Parts Stolen . | . . . Parts Stripped . | . . . Power Chain Reactions . | . . . Alert | -11 -10 -10 ------- Run | Yrd Mat Sub Maximum Alert Level . | . . . Low Security (%) 100 | 100 100 . Level 1 . | . . . Level 2 . | . . . Level 3 . | . . . Level 4 . | . . . Level 5 . | . . . High Security . | . . . Max Security . | . . . Peak Influence 135 | 10 135 . Initial . | . . . Average 51 | 1 56 . Influence Increases 453 | 10 313 130 Destroy 0b10 Robot/C 280 | . 200 80 Destroy 0b10 Robot/NC 35 | 10 25 . Destroy Leader 66 | . 46 20 Successful Hack 8 | . 8 . Disable Machine 15 | . 15 . Destroy Structure 19 | . 19 . Lose Combat Pursuer 30 | . . 30 Influence Decreases 453 | 10 313 130 Time Decay 443 | 10 303 130 Lost Part 10 | . 10 . Squads Dispatched 1 | . 1 . Investigation . | . . . Extermination . | . . . Reinforcement 1 | . 1 . Assault . | . . . Garrison . | . . . Intercept . | . . . Searches Triggered . | . . . Construction Impeded . | . . . Haulers Reinforced . | . . . Active Scanning Responses . | . . . Cargo Convoy Interrupts . | . . . Stealth | -11 -10 -10 --------- Run | Yrd Mat Sub Distress Signals 1 | . 1 . Communications Jammed . | . . . Distress Signals . | . . . Times Spotted 34 | . 19 15 Peak Tracking Total 5 | . 5 4 Tactical Retreats 1 | . . 1 Traps | -11 -10 -10 ------- Run | Yrd Mat Sub Traps Triggered 1 | . 1 . Indirectly . | . . . Trap Hack Attempts . | . . . Triggered . | . . . Disarmed . | . . . Reprogrammed . | . . . Reused . | . . . Traps Extracted . | . . . Installed . | . . . Triggered . | . . . Machines | -11 -10 -10 ---------- Run | Yrd Mat Sub Machines Disabled 1 | . 1 . Max in Single Turn 1 | . 1 . Machines Repaired . | . . . Machines Dismantled . | . . . Machines Sabotaged . | . . . Overloaded Fab Kills . | . . . Hacking | -11 -10 -10 --------- Run | Yrd Mat Sub Machines Accessed 2 | . 2 . Terminals 2 | . 2 . Fabricators . | . . . Repair Stations . | . . . Recycling Units . | . . . Scanalyzers . | . . . Garrison Access . | . . . Total Hacks 5 | . 5 . Successful 2 | . 2 . Failed 3 | . 3 . Catastrophic 1 | . 1 . Database Lockouts . | . . . Manual 5 | . 5 . Terminals 5 | . 5 . Fabricators . | . . . Repair Stations . | . . . Recycling Units . | . . . Scanalyzers . | . . . Garrison Access . | . . . Terminal Hacks 2 | . 2 . Maintenance Status 1 | . 1 . Patrol Status 1 | . 1 . Fabricator Hacks . | . . . Repair Station Hacks . | . . . Recycling Unit Hacks . | . . . Scanalyzer . | . . . Garrison Access Hacks . | . . . Unauthorized Hacks . | . . . Terminals . | . . . Fabricators . | . . . Repair Stations . | . . . Recycling Units . | . . . Scanalyzers . | . . . Garrison Access . | . . . Data Cores Recovered . | . . . Used . | . . . Hacking Detections 1 | . 1 . Full Trace Events . | . . . Feedback Events . | . . . Feedback Blocked . | . . . Robot Schematics Acquired . | . . . Robots Built . | . . . Authchips . | . . . Time . | . . . Total Robot Build Rating . | . . . Part Schematics Acquired . | . . . Parts Built . | . . . Authchips . | . . . Time . | . . . Total Part Build Rating . | . . . Part Studies Acquired . | . . . Parts Repaired . | . . . Time . | . . . Parts Recycled . | . . . Recycled Matter . | . . . Retrieved Matter . | . . . Retrieved Components . | . . . Parts Scanalyzed . | . . . Part Schematics Acquired . | . . . Parts Damaged . | . . . Bothacking | -11 -10 -10 ------------ Run | Yrd Mat Sub Used RIF Installer . | . . . Robots Hacked . | . . . Non-combat . | . . . Combat . | . . . Robot Hacks Applied . | . . . Relay Couplers Released . | . . . Fabnet Peak Effective % . | . . . Robots Rewired . | . . . Allies Hacked . | . . . Hacks Repelled . | . . . Allies | -11 -10 -10 -------- Run | Yrd Mat Sub Total Allies . | . . . Largest Group . | . . . Highest-Rated Group . | . . . Highest-Rated Ally . | . . . Total Orders . | . . . Ally Attacks . | . . . Total Damage . | . . . Kills . | . . . Allies Corrupted . | . . . Allies Melted . | . . . Intel | -11 -10 -10 ------- Run | Yrd Mat Sub Active Infowar (turns) 2520 | 4 859 1657 Seismic 2520 | 4 859 1657 Robot Analysis Total . | . . . Derelict Logs Recovered . | . . . Drone Launches . | . . . Drone Recoveries . | . . . Exploration | -11 -10 -10 ------------- Run | Yrd Mat Sub Turns Passed 2614 | 98 859 1657 Spaces Moved 1439 | 53 436 950 Core 9 | 9 . . Treads 1430 | 44 436 950 Legs . | . . . Wheels . | . . . Hover . | . . . Flight . | . . . Fastest Speed 50 | 50 160 160 Average Speed 159 | 141 160 160 Slowest Speed 160 | 160 160 160 Overloaded Moves . | . . . Propulsion Burnouts . | . . . Robots Hopped . | . . . Potential Cave-ins . | . . . Cave-ins Triggered . | . . . Exploration Rate (%) 40 | 5 76 41 Regions Visited 2 Branch Regions 1 Pre-discovered Areas . | . . . Known Exits Taken . | . . . Unknown Exits Taken 2 | 1 1 . Scrap Searched . | . . . Spaces Dug . | . . . Terrain Destroyed 17 | . 17 . Melee . | . . . Projectile . | . . . AOE 17 | . 17 . Terrain Rammed . | . . . Walls Destroyed . | . . . Machines Disabled . | . . . Actions | -11 -10 -10 --------- Run | Yrd Mat Sub Total 1640 | 72 546 1022 Wait 97 | . 69 28 Move 1437 | 52 435 950 Hop . | . . . Pick Up 22 | 11 7 4 Fast Attach . | . . . Attach 9 | 7 1 1 Detach . | . . . Swap 7 | . 5 2 Drop 4 | . 2 2 Fire 62 | 2 26 34 Melee 1 | . . 1 Ram . | . . . Kick . | . . . Crush 1 | . 1 . Escape Stasis . | . . . Rewire . | . . . Trap . | . . . Miscellaneous . | . . . Route ------- -11/Scrapyard -10/Materials (discovered 5 exits: [*Mat x3] / [*Min] / [*Sub]) -10/Subcaves History --------- Turn | Location | Event 5 | -11/Scrapyard | Discovered new exit (range 13) 99 | -11/Scrapyard | Entered Materials 190 | -10/Materials | Discovered new exit (range 14) 335 | -10/Materials | Build established: Mutant 675 | -10/Materials | Discovered new exit (range 4) 797 | -10/Materials | Discovered new exit (range 8) 840 | -10/Materials | Discovered new exit (range 5) 950 | -10/Materials | Discovered new exit (range 6) 958 | -10/Materials | Entered Subcaves 959 | -10/Subcaves | Approached by a straggling Scientist 1069 | -10/Subcaves | Shifting Twisted Machinery released Sub. Beam Cannon 1071 | -10/Subcaves | Shifting Twisted Machinery released Hvy. Battle Rifle 1184 | -10/Subcaves | Shifting Twisted Machinery released Sub. Beam Cannon 2592 | -10/Subcaves | Core integrity fell below 50% 2608 | -10/Subcaves | Core integrity fell below 20% 2615 | -10/Subcaves | Destroyed by BF-R6Q(R) with Subdweller Machine Gun Last Messages --------------- 01771_ Subatomizers dissect the Sub. Optics. 02132_ G-47 Trooper suffers critical hit (Destroy). 02132_ G-47 Trooper destroyed. 02138_ G-34 Mercenary destroyed. 02143_ Ion Engine fries itself beyond repair. 02144_ Imp. Heat Sink fries itself beyond repair. 02146_ Acquired 29 matter. 02147_ Sml. Laser fries itself beyond repair. 02147_ Aluminum Leg fries itself beyond repair. 02150_ Particle Gun fries itself beyond repair. 02150_ Heat Sink fries itself beyond repair. 02571_ 8M-TIB(u) deconstructs Twisted Machinery. 02586_ Lgt. Treads destroyed. 02592_ Lgt. Ion Engine destroyed. 02594_ Lgt. Treads destroyed. 02605_ Beam Cannon destroyed. 02608_ Destroyed Scrap Shield. 02611_ B5-8PX(R) destroyed. Map ----- +----------------------------------------------------+ | ?????????????# #????####??## ????? | | ?????????????# ## ##???## #### ???? | | ????????????## #?####???## ##""""#???? | | ???????????## ##???????# " "#???? | | ???????????# #####???### """" "##??? | | ???????????# ##????# " "" " #??? | | ???????????## ###### " """"" #??? | | ????????????# " """" ##?? | | ????????????## #### """ ### | | ?????????????## ###??## """ ## | | ??????????????## ##????## ##### "## *# | | ????????????#### #?????#] #???## ### &! | | ????????????# ##???? #????### ## !& | | ????????????## #???# ##??##??# ### ### # | | ?????????????### ##???# ###??## #?# ####?# # | | ??????????????## ##???# ##???### ### #???# # | | ??????????????# ##???## ?##### ## ###### # | | ??????????????## #???? ?? # # ### | | ??????????????# ##???##?? ??# | | ???????????#### #???????? ??## "" | | ???????????# # #########= ????## " " | | ???????##### ## !%& #???## " #### | | ######## ## [R#????# " ##??? | | # ## # # # #????## ## " "#???? | | # ##### ## #????## ### " ##???? | | ##% #???? ## @####### ### ##????? | | #### #?????### ## ## # #?????? | | ##?# # ##???????# # ## ### ?????? | | ???## ## ##????????#### ####?# ????? | | ????## ######????????????###### ##????##"? ???? | | ?????# ##??????????????????????## ##???????#??#??? | | ?????###????????????????????????###??????????????? | | ?????????????????????????????????????????????????? | | ?????????????????????????????????????????????????? | | ?????????????????????????????????????????????????? | | ?????????????????????????????????????????????????? | | ?????????????????????????????????????????????????? | | ?????????????????????????????????????????????????? | | ?????????????????????????????????????????????????? | | ?????????????????????????????????????????????????? | | ?????????????????????????????????????????????????? | | ?????????????????????????????????????????????????? | | ?????????????????????????????????????????????????? | | ?????????????????????????????????????????????????? | | ?????????????????????????????????????????????????? | | ?????????????????????????????????????????????????? | | | | | | | | | +----------------------------------------------------+ Best States ------------- Heat Dissipation 25 Energy Generation 10 Energy Capacity 125 Matter Stores 300 Matter Capacity 300 Sight Range 16 Terrain Scan Density 10 Evasion (%) 40 Recoil Reduction 2 Item Schematics ----------------- None Robot Schematics ------------------ None Fabricated ------------ Nothing Repaired ---------- Nothing Studied --------- None Alien Tech Used ----------------- None Achievements -------------- None Challenges ------------ None Game ------ Seed BiometalInsulationCompressor Manual? 0 Play Time 00:13:58 Cumulative 41.5 hours Start 2026.09.02 @ 13:28:02 End 2026.09.02 @ 13:39:49 Sessions 1 Manual Loads 0 Difficulty Rogue Special Mode None Game No. 48 Rogue 45 Adventurer 3 Explorer 0 Win Type - Total 1 Types 1/0/0/0/0/0/0/0/0/0 Lore% 37 Gallery% 34 Achievement% 33 Wizard Run 0 Options --------- Layout 1 ASCII 0 Keyboard 0 Movement Mouse Keybinds 0 Fullscreen 1 Font 32/SmallcapsGlow Map View 50x35 Zoom Use 0% Tactical HUD 1 Map Filters NONE Filters NONE Steam 1 RUN: 23a78562-35c5-440b-8bdf-d0741c67c06c